bitfinex/quotes_BTCUSD_20250505
["timestamp","ask_amount","ask_price","bid_price","bid_amount"]
[1746458757910,0.23432152,94102.0,94101.0,0.36505689]
[1746458758362,0.23432152,94102.0,94101.0,0.35805689]
[1746458758774,0.26482152,94102.0,94101.0,0.35005689]
[1746458759115,0.26582152,94102.0,94101.0,0.35605689]
[1746458759770,0.28148681,94102.0,94101.0,0.35005689]
[1746458760181,0.28248681,94102.0,94101.0,0.35505689]
[1746458761601,0.38321947,94102.0,94101.0,0.35505689]
[1746458761814,0.28248681,94102.0,94101.0,0.35505689]
[1746458762042,0.34848681,94102.0,94101.0,0.35505689]
[1746458762261,0.34848681,94102.0,94101.0,0.34905689]
[1746458762262,0.34748681,94102.0,94101.0,0.34905689]
[1746458762470,0.34848681,94102.0,94101.0,0.35405689]
[1746458763325,0.34848681,94102.0,94101.0,0.34905689]
[1746458763326,0.34748681,94102.0,94101.0,0.34905689]
[1746458763753,0.34848681,94102.0,94101.0,0.35405689]
[1746458765352,0.34848681,94102.0,94101.0,0.34705689]
[1746458766818,0.31698681,94102.0,94101.0,0.34705689]
[1746458767242,0.34968681,94102.0,94101.0,0.34705689]
[1746458767876,0.33302152,94102.0,94101.0,0.34705689]
[1746458768147,0.67302152,94102.0,94101.0,0.34705689]
[1746458768555,0.77854181,94102.0,94101.0,0.34705689]
[1746458768758,0.67302152,94102.0,94101.0,0.35106524]
[1746458769633,0.67202152,94102.0,94101.0,0.34606524]
[1746458770031,0.67302152,94102.0,94101.0,0.34906524]
[1746458770645,0.67202152,94102.0,94101.0,0.34406524]
[1746458770870,0.68768839,94102.0,94101.0,0.34106524]
[1746458771123,0.68768839,94102.0,94101.0,0.00646524]
[1746458771513,0.68768839,94102.0,94101.0,0.00245689]
[1746458771941,0.68768839,94102.0,94101.0,0.00045689]
[1746458772140,0.68868839,94102.0,94101.0,0.00245689]
[1746458772356,0.68868839,94102.0,94085.0,0.35168]
[1746458772357,0.21257147,94086.0,94085.0,0.34913689]
[1746458772550,0.21257147,94086.0,94085.0,0.34927387]
[1746458772753,0.23235766,94086.0,94085.0,0.35328405]
[1746458772887,0.2490252,94086.0,94085.0,0.35328405]
[1746458773146,0.03645373,94086.0,94085.0,0.77424164]
[1746458773388,0.03645373,94086.0,94085.0,0.98280519]
[1746458773608,0.03745373,94086.0,94085.0,0.98780519]
[1746458774042,0.03645373,94086.0,94085.0,0.98280519]
[1746458774223,0.03645373,94086.0,94085.0,1.08832548]
[1746458774588,0.03645373,94086.0,94085.0,1.09232548]
[1746458774802,0.03645373,94086.0,94085.0,1.08832548]
[1746458774931,0.03745373,94086.0,94085.0,1.09432548]
[1746458775531,0.03745373,94086.0,94085.0,0.98880519]
[1746458776340,0.03845373,94086.0,94085.0,0.99280519]
[1746458776543,0.02178619,94086.0,94085.0,0.78023146]
[1746458776680,0.02078619,94086.0,94085.0,0.77623146]
[1746458777055,0.02178619,94086.0,94085.0,0.78223146]
[1746458777219,0.02178619,94086.0,94085.0,0.99480519]
[1746458777647,0.02178619,94086.0,94085.0,0.72580874]
[1746458778270,0.02178619,94086.0,94085.0,0.62028845]
[1746458779011,0.02078619,94086.0,94085.0,0.61428845]
[1746458779544,0.02178619,94086.0,94085.0,0.61428845]
[1746458779960,0.02078619,94086.0,94085.0,0.60828845]
[1746458780138,0.02078619,94086.0,94085.0,0.61328845]
[1746458780340,0.02178619,94086.0,94085.0,0.71880874]
[1746458780996,0.0384524,94086.0,94085.0,0.71880874]
[1746458782273,0.0384524,94086.0,94085.0,1.10786633]
[1746458783858,0.0384524,94086.0,94085.0,1.00234604]
[1746458786565,0.0384524,94086.0,94085.0,0.99534604]
[1746458786776,0.02178619,94086.0,94085.0,0.99534604]
[1746458789975,0.0384523,94086.0,94085.0,0.99534604]
[1746458790180,0.0384523,94086.0,94085.0,0.97924604]
[1746458790391,0.0384523,94086.0,94085.0,0.75087231]
[1746458792762,0.0384523,94086.0,94085.0,0.96344604]
[1746458793624,0.0384523,94086.0,94085.0,0.95644604]
[1746458794443,0.25102377,94086.0,94085.0,0.74387231]
[1746458795657,0.0384523,94086.0,94085.0,0.74387231]
[1746458795998,0.25102377,94086.0,94085.0,0.74387231]
[1746458796922,0.23435766,94086.0,94085.0,0.74387231]
[1746458798616,0.02178619,94086.0,94085.0,0.74387231]
[1746458798739,0.23435766,94086.0,94085.0,0.74387231]
[1746458799861,0.25102425,94086.0,94085.0,0.74387231]
[1746458800064,0.03845278,94086.0,94085.0,0.74387231]
[1746458800671,0.03845278,94086.0,94085.0,0.73687231]
[1746458801488,0.03845278,94086.0,94085.0,0.94944604]
[1746458801697,0.03845278,94086.0,94085.0,1.05496633]
[1746458802104,0.03845278,94086.0,94085.0,1.08636633]
[1746458802516,0.01866659,94086.0,94085.0,1.07126633]
[1746458802754,0.0385205,94086.0,94085.0,1.05496633]
[1746458803587,0.0385205,94086.0,94085.0,0.94944604]
[1746458805293,0.0385205,94086.0,94085.0,0.99756634]
[1746458807444,0.0385205,94086.0,94085.0,0.78499261]
[1746458807658,0.26662538,94086.0,94085.0,0.78499261]
[1746458807841,0.26662538,94086.0,94085.0,0.77799261]
[1746458808268,0.23442538,94086.0,94085.0,0.77799261]
[1746458808699,0.26662538,94086.0,94085.0,0.77799261]
[1746458810269,0.28329171,94086.0,94085.0,0.72987231]
[1746458810492,0.28329171,94086.0,94085.0,0.71533146]
[1746458812154,0.28329171,94086.0,94085.0,0.32627387]
[1746458812402,0.37857835,94086.0,94085.0,0.32627387]
[1746458812832,0.28329171,94086.0,94085.0,0.32627387]
[1746458813445,0.28229171,94086.0,94085.0,0.31927387]
[1746458813935,0.28129171,94086.0,94085.0,0.31427387]
[1746458814388,0.28229171,94086.0,94085.0,0.31827387]
[1746458814806,0.28229171,94086.0,94085.0,0.31127387]
[1746458815646,0.28229171,94086.0,94085.0,0.57754535]
[1746458815647,0.03752024,94086.0,94085.0,0.57754535]
[1746458815858,0.03752024,94086.0,94085.0,0.96660294]
[1746458816072,0.02085391,94086.0,94085.0,0.96660294]
[1746458817109,0.02085391,94086.0,94085.0,0.93044604]
[1746458817956,0.02085391,94086.0,94085.0,0.94604604]
[1746458818383,0.02085391,94086.0,94085.0,0.93044604]
[1746458820631,0.03752032,94086.0,94085.0,0.93044604]
[1746458821435,0.03752032,94086.0,94085.0,0.94122788]
[1746458821987,0.03752032,94086.0,94085.0,0.93422788]
[1746458822192,0.03752032,94086.0,94085.0,1.08786927]
[1746458824800,0.03752032,94086.0,94085.0,1.11956927]
[1746458825023,0.03752032,94086.0,94085.0,2.14776927]
[1746458825495,0.01766641,94086.0,94085.0,2.14776927]
[1746458825939,0.01982344,94109.0,94108.0,0.21252178]
[1746458826253,0.01982344,94109.0,94108.0,0.63202022]
[1746458826488,0.01982344,94109.0,94108.0,0.64682022]
[1746458827502,0.0325,94132.0,94108.0,0.64682022]
[1746458827503,0.22309531,94131.0,94129.0,0.01454085]
[1746458827750,0.0157,94137.0,94132.0,0.02516422]
[1746458827966,0.22307477,94139.0,94136.0,0.00962292]
[1746458828179,0.2124315,94148.0,94137.0,0.02516366]
[1746458828180,0.0270218,94146.0,94137.0,0.02516366]
[1746458828474,0.01062225,94142.0,94139.0,0.01454085]
[1746458828698,0.2380538,94148.0,94145.0,0.21243767]
[1746458828876,0.23851004,94148.0,94145.0,0.21243767]
[1746458829123,0.23851004,94148.0,94144.0,0.22697941]
[1746458829321,0.25516797,94148.0,94144.0,0.22697941]
[1746458829559,0.25516797,94148.0,94145.0,0.06405555]
[1746458829947,0.21243473,94147.0,94145.0,0.06405555]
[1746458830954,0.2124366,94146.0,94144.0,0.01454085]
[1746458831371,0.2124366,94146.0,94143.0,0.01454085]
[1746458831543,0.0161,94145.0,94143.0,0.01454085]
[1746458832067,0.0161,94145.0,94144.0,0.01454085]
[1746458832597,0.04312191,94145.0,94140.0,0.02516332]
[1746458832742,0.02702191,94145.0,94142.0,0.23760744]
[1746458832944,0.23946066,94145.0,94142.0,0.23760802]
[1746458833124,0.23946066,94145.0,94143.0,0.36923415]
[1746458833341,0.23946066,94145.0,94144.0,0.01391305]
[1746458833545,0.25586066,94145.0,94144.0,0.01391305]
[1746458834611,0.25586066,94145.0,94144.0,0.01491305]
[1746458835116,0.25586066,94145.0,94144.0,0.01591305]
[1746458836037,0.25586066,94145.0,94144.0,0.002]
[1746458836240,0.25586066,94145.0,94144.0,0.37123415]
[1746458837151,0.25586066,94145.0,94144.0,0.43172761]
[1746458838284,0.25586066,94145.0,94144.0,0.37123415]
[1746458841943,0.25586066,94145.0,94144.0,0.72275415]
[1746458842804,0.27251851,94145.0,94144.0,0.72275415]
[1746458843224,0.27251851,94145.0,94144.0,0.71575415]
[1746458845084,0.33851851,94145.0,94144.0,0.71575415]
[1746458845315,0.69822763,94145.0,94144.0,0.35152]
[1746458847048,0.69922763,94145.0,94144.0,0.35152]
[1746458849000,0.80574792,94145.0,94144.0,0.33592]
[1746458849227,0.80574792,94145.0,94144.0,0.31932]
[1746458849624,0.70022763,94145.0,94144.0,0.31932]
[1746458849833,0.69922763,94145.0,94144.0,0.31932]
[1746458850235,0.70222763,94145.0,94144.0,0.31932]
[1746458850454,0.70322763,94145.0,94144.0,0.31932]
[1746458850715,0.68656978,94145.0,94144.0,0.31932]
[1746458851243,0.68756978,94145.0,94144.0,0.31932]
[1746458851498,0.68756978,94145.0,94144.0,0.31232]
[1746458851938,0.68656978,94145.0,94144.0,0.31232]
[1746458853303,0.62056978,94145.0,94144.0,0.343552]
[1746458853458,0.02470912,94145.0,94144.0,0.31232]
[1746458853666,0.04136839,94145.0,94144.0,0.31232]
[1746458853990,0.25380665,94145.0,94144.0,0.31232]
[1746458854156,0.31980665,94145.0,94144.0,0.31232]
[1746458854342,0.25080665,94145.0,94144.0,0.31232]
[1746458854535,0.04136839,94145.0,94144.0,0.31232]
[1746458854734,0.31780665,94145.0,94144.0,0.31232]
[1746458854955,0.25180665,94145.0,94144.0,0.31232]
[1746458855298,0.31480665,94145.0,94144.0,0.31232]
[1746458856437,0.29509753,94145.0,94144.0,0.31232]
[1746458856663,0.31489412,94145.0,94144.0,0.31232]
[1746458856878,0.31689412,94145.0,94144.0,0.31232]
[1746458857373,0.31489412,94145.0,94144.0,0.31232]
[1746458858397,0.31489412,94145.0,94144.0,0.30532]
[1746458860138,0.29823485,94145.0,94144.0,0.30532]
[1746458863155,0.31489351,94145.0,94144.0,0.30532]
[1746458865436,0.31489351,94145.0,94144.0,0.29832]
[1746458870128,0.24889351,94145.0,94144.0,0.29832]
[1746458870368,0.31489351,94145.0,94144.0,0.29832]
[1746458870796,0.24889351,94145.0,94144.0,0.29832]
[1746458871803,0.03645525,94145.0,94144.0,0.29832]
[1746458872419,0.24889351,94145.0,94144.0,0.29132]
[1746458872617,0.03645525,94145.0,94144.0,0.29132]
[1746458872874,0.24889351,94145.0,94144.0,0.36716938]
[1746458873393,0.31489351,94145.0,94144.0,0.36716938]
[1746458873943,0.31489351,94145.0,94144.0,0.29132]
[1746458874809,0.31489351,94145.0,94144.0,0.29432]
[1746458874963,0.31489351,94145.0,94144.0,0.29732]
[1746458875188,0.31489351,94145.0,94144.0,0.29132]
[1746458875984,0.31489351,94145.0,94144.0,0.29432]
[1746458877681,0.31489351,94145.0,94144.0,0.29732]
[1746458879210,0.24889351,94145.0,94144.0,0.29732]
[1746458879614,0.24889351,94145.0,94144.0,0.29032]
[1746458879849,0.23223485,94145.0,94144.0,0.29032]
[1746458882701,0.24889296,94145.0,94144.0,0.29032]
[1746458886655,0.24889296,94145.0,94144.0,0.28332]
[1746458886894,0.28089296,94145.0,94144.0,0.28332]
[1746458888766,0.26423485,94145.0,94144.0,0.28332]
[1746458892279,0.28089295,94145.0,94144.0,0.28332]
[1746458892685,0.29689295,94145.0,94144.0,0.28332]
[1746458893343,0.34689295,94145.0,94144.0,0.28332]
[1746458893964,0.34689295,94145.0,94144.0,0.27632]
[1746458896650,0.31489295,94145.0,94144.0,0.27632]
[1746458897069,0.10245469,94145.0,94144.0,0.27032]
[1746458897375,0.31489295,94145.0,94144.0,0.27232]
[1746458898119,0.31489295,94145.0,94144.0,0.27532]
[1746458898495,0.31489295,94145.0,94144.0,0.27332]
[1746458899330,0.24889295,94145.0,94144.0,0.27632]
[1746458899485,0.31489295,94145.0,94144.0,0.27632]
[1746458901054,0.31489295,94145.0,94144.0,0.26932]
[1746458903752,0.34619295,94145.0,94144.0,0.26932]
[1746458908085,0.34619295,94145.0,94144.0,0.26232]
[1746458912480,0.34619295,94145.0,94144.0,0.25632]
[1746458912982,0.34619295,94145.0,94144.0,0.25832]
[1746458913125,0.34619295,94145.0,94144.0,0.26032]
[1746458914049,0.31489295,94145.0,94144.0,0.26032]
[1746458915018,0.31489295,94145.0,94144.0,0.25332]
[1746458921154,0.10245469,94145.0,94144.0,0.25332]
[1746458922092,0.10245469,94145.0,94144.0,0.24632]
[1746458922448,0.10245469,94145.0,94144.0,0.27596711]
[1746458923109,0.10245469,94145.0,94144.0,0.24632]
[1746458929457,0.10245469,94145.0,94144.0,0.23932]
[1746458933763,0.03645469,94145.0,94144.0,0.23932]
[1746458933983,0.05245469,94145.0,94144.0,0.27082]
[1746458934202,0.05245469,94145.0,94144.0,0.25522]
[1746458934590,0.10245469,94145.0,94144.0,0.25522]
[1746458935654,0.03645469,94145.0,94144.0,0.26976085]
[1746458935849,0.10245469,94145.0,94144.0,0.28536085]
[1746458936357,0.03645469,94145.0,94144.0,0.31191205]
[1746458936575,0.10245469,94145.0,94144.0,0.31191205]
[1746458937226,0.08579659,94145.0,94144.0,0.31191205]
[1746458938111,0.08579659,94145.0,94144.0,0.29631205]
[1746458938339,0.08579659,94145.0,94144.0,0.23232]
[1746458938570,0.11699659,94145.0,94144.0,0.23232]
[1746458940356,0.13365492,94145.0,94144.0,0.23232]
[1746458942569,0.47465492,94145.0,94144.0,0.23232]
[1746458942769,0.52263159,94145.0,94144.0,0.23232]
[1746458943177,0.52263159,94145.0,94144.0,0.23032]
[1746458943310,0.47465492,94145.0,94144.0,0.22332]
[1746458943520,0.47465492,94145.0,94144.0,0.22132]
[1746458944345,0.47865492,94145.0,94144.0,0.22132]
[1746458944671,0.48165492,94145.0,94144.0,0.22132]
[1746458945814,0.48150196,94145.0,94144.0,0.22132]
[1746458950504,0.48150196,94145.0,94144.0,0.21432]
[1746458952226,0.46185833,94145.0,94144.0,0.21432]
[1746458954575,0.50828979,94145.0,94144.0,0.21432]
[1746458957145,0.066,94117.0,94111.0,0.08490541]
[1746458957312,0.066,94116.0,94112.0,0.35156]
[1746458957524,0.066,94116.0,94112.0,0.34456]
[1746458957843,0.01981341,94115.0,94112.0,0.34456]
[1746458958445,0.01981341,94114.0,94112.0,0.34456]
[1746458958648,0.066,94113.0,94112.0,0.34456]
[1746458959006,0.08581341,94113.0,94112.0,0.34456]
[1746458960023,0.08581341,94113.0,94112.0,0.34756]
[1746458960754,0.08581341,94113.0,94112.0,0.38056]
[1746458961429,0.01981341,94113.0,94112.0,0.37756]
[1746458961624,0.08581341,94113.0,94112.0,0.37956]
[1746458961998,0.08581341,94113.0,94112.0,0.37656]
[1746458962199,0.08581341,94113.0,94112.0,0.37456]
[1746458962348,0.08581341,94113.0,94112.0,0.37656]
[1746458962811,0.08581341,94113.0,94112.0,0.37456]
[1746458962941,0.08581341,94113.0,94112.0,0.37656]
[1746458963136,0.08581341,94113.0,94112.0,0.37956]
[1746458963343,0.10247604,94113.0,94112.0,0.37956]
[1746458963540,0.03647604,94113.0,94112.0,0.37956]
[1746458963750,0.10247604,94113.0,94112.0,0.37956]
[1746458964171,0.10247604,94113.0,94112.0,0.37756]
[1746458964588,0.10247604,94113.0,94112.0,0.37356]
[1746458971259,0.10247604,94113.0,94112.0,0.78836]
[1746458972254,0.03647604,94113.0,94112.0,0.78836]
[1746458972460,0.10247604,94113.0,94112.0,0.78836]
[1746458972652,0.10247604,94113.0,94112.0,0.84628056]
[1746458972860,0.10247604,94113.0,94112.0,0.87612141]
[1746458972993,0.03647604,94113.0,94112.0,0.87612141]
[1746458973227,0.10247604,94113.0,94112.0,0.87612141]
[1746458974770,0.03647604,94113.0,94112.0,0.87612141]
[1746458975103,0.03647604,94113.0,94112.0,0.79620085]
[1746458975251,0.03647604,94113.0,94112.0,0.79680085]
[1746458975470,0.01981341,94113.0,94112.0,0.79680085]
[1746458976165,0.01981341,94113.0,94112.0,0.79080085]
[1746458976565,0.02181341,94113.0,94112.0,0.80480085]
[1746458978110,0.02081341,94113.0,94112.0,0.79780085]
[1746458978268,0.02081341,94113.0,94112.0,0.90332114]
[1746458978471,0.02181341,94113.0,94112.0,0.90932114]
[1746458979070,0.02181341,94113.0,94112.0,0.90232114]
[1746458979327,0.02081341,94113.0,94112.0,0.90232114]
[1746458979525,0.02081341,94113.0,94112.0,0.80080085]
[1746458979704,0.02081341,94113.0,94112.0,0.79380085]
[1746458980092,0.03747543,94113.0,94112.0,0.79380085]
[1746458982309,0.03747543,94113.0,94112.0,0.77790085]
[1746458982653,0.03747543,94113.0,94112.0,0.89902114]
[1746458983423,0.03747543,94113.0,94112.0,0.86842114]
[1746458983754,0.03747543,94113.0,94112.0,0.76290085]
[1746458984043,0.03747543,94113.0,94112.0,0.77820085]
[1746458984188,0.03747543,94113.0,94112.0,0.79460085]
[1746458986712,0.01766202,94113.0,94112.0,0.78760085]
[1746458987945,0.03751928,94113.0,94112.0,0.8356766]
[1746458989156,0.03751928,94113.0,94112.0,0.8039766]
[1746458993335,0.03751928,94113.0,94112.0,0.78943575]
[1746458993781,0.03751928,94113.0,94112.0,0.78243575]
[1746458994627,0.06861928,94113.0,94112.0,0.78243575]
[1746458996168,0.05251928,94113.0,94112.0,0.78243575]
[1746458996391,0.06881928,94113.0,94112.0,0.78243575]
[1746458996610,0.05215726,94113.0,94112.0,0.78243575]
[1746458996952,0.05215726,94113.0,94112.0,0.73436]
[1746458997133,0.02085726,94113.0,94112.0,0.73436]
[1746459000921,0.02085726,94113.0,94112.0,0.72736]
[1746459001147,0.0375202,94113.0,94112.0,0.72736]
[1746459002554,0.0375202,94113.0,94112.0,0.82075535]
[1746459002771,0.0375202,94113.0,94112.0,0.83625535]
[1746459003205,0.0375202,94113.0,94112.0,0.82075535]
[1746459003673,0.0375202,94113.0,94112.0,0.74190085]
[1746459004507,0.0375202,94113.0,94112.0,0.75790085]
[1746459005166,0.0375202,94113.0,94112.0,0.74190085]
[1746459006701,0.0375202,94113.0,94112.0,0.82573392]
[1746459006702,0.25003069,94113.0,94112.0,0.82573392]
[1746459006918,0.26626775,94113.0,94112.0,0.82573392]
[1746459007570,0.26526775,94113.0,94112.0,0.81973392]
[1746459007996,0.33126775,94113.0,94112.0,0.81273392]
[1746459008216,0.33126775,94113.0,94112.0,0.80873392]
[1746459008582,0.33126775,94113.0,94112.0,0.81173392]
[1746459008910,0.33126775,94113.0,94112.0,0.80873392]
[1746459009281,0.33126775,94113.0,94112.0,0.81073392]
[1746459009841,0.33126775,94113.0,94112.0,0.81473392]
[1746459010041,0.34793152,94113.0,94112.0,0.81473392]
[1746459010244,0.34793152,94113.0,94112.0,0.81073392]
[1746459010486,0.34793152,94113.0,94112.0,0.71236]
[1746459011100,0.38931467,94113.0,94112.0,0.29756]
[1746459011302,0.38931467,94113.0,94112.0,0.29740704]
[1746459011524,0.34893152,94113.0,94112.0,0.29740704]
[1746459012096,0.34793152,94113.0,94112.0,0.29740704]
[1746459012442,0.34793152,94113.0,94112.0,0.29840704]
[1746459012874,0.34793152,94113.0,94112.0,0.29740704]
[1746459013074,0.34993152,94113.0,94112.0,0.29540704]
[1746459013448,0.35293152,94113.0,94112.0,0.29540704]
[1746459014547,0.34993152,94113.0,94112.0,0.29540704]
[1746459014749,0.35293152,94113.0,94112.0,0.29540704]
[1746459015069,0.35293152,94113.0,94112.0,0.28840704]
[1746459015917,0.34993152,94113.0,94112.0,0.28840704]
[1746459016120,0.34793152,94113.0,94112.0,0.28840704]
[1746459016331,0.35093152,94113.0,94112.0,0.28840704]
[1746459016581,0.28493152,94113.0,94112.0,0.28840704]
[1746459016795,0.24903152,94113.0,94112.0,0.28840704]
[1746459017008,0.23436775,94113.0,94112.0,0.28840704]
[1746459017221,0.23536775,94113.0,94112.0,0.28840704]
[1746459017660,0.23436775,94113.0,94112.0,0.28840704]
[1746459017875,0.23536775,94113.0,94112.0,0.28840704]
[1746459018719,0.30136775,94113.0,94112.0,0.28840704]
[1746459018966,0.23536775,94113.0,94112.0,0.28840704]
[1746459019451,0.23636775,94113.0,94112.0,0.28840704]
[1746459020093,0.23536775,94113.0,94112.0,0.28840704]
[1746459020321,0.24903176,94113.0,94112.0,0.28840704]
[1746459020547,0.25103176,94113.0,94112.0,0.28840704]
[1746459021150,0.25003176,94113.0,94112.0,0.28840704]
[1746459021353,0.25103176,94113.0,94112.0,0.28840704]
[1746459021574,0.25003176,94113.0,94112.0,0.28840704]
[1746459021772,0.31603176,94113.0,94112.0,0.28840704]
[1746459021974,0.03652127,94113.0,94112.0,0.28840704]
[1746459022218,0.03652127,94113.0,94112.0,0.69620704]
[1746459023194,0.24903176,94113.0,94112.0,0.69620704]
[1746459023394,0.03752127,94113.0,94112.0,0.69620704]
[1746459023603,0.03752127,94113.0,94112.0,0.69820704]
[1746459023835,0.03652127,94113.0,94112.0,0.69820704]
[1746459024000,0.03652127,94113.0,94112.0,0.69620704]
[1746459024174,0.03652127,94113.0,94112.0,0.69920704]
[1746459024562,0.03652127,94113.0,94112.0,0.70220704]
[1746459025007,0.03652127,94113.0,94112.0,0.71850704]
[1746459025206,0.03652127,94113.0,94112.0,0.69620704]
[1746459025565,0.03652127,94113.0,94112.0,0.69920704]
[1746459026629,0.01985726,94113.0,94112.0,0.69920704]
[1746459027239,0.01985726,94113.0,94112.0,0.70220704]
[1746459027650,0.01985726,94113.0,94112.0,0.69620704]
[1746459027871,0.23236775,94113.0,94112.0,0.69920704]
[1746459028086,0.23236775,94113.0,94112.0,0.70220704]
[1746459028284,0.23236775,94113.0,94112.0,0.69920704]
[1746459028617,0.01985726,94113.0,94112.0,0.69920704]
[1746459028780,0.01985726,94113.0,94112.0,0.69620704]
[1746459028994,0.01985726,94113.0,94112.0,0.70220704]
[1746459029193,0.01985726,94113.0,94112.0,0.69520704]
[1746459029563,0.01985726,94113.0,94112.0,0.69220704]
[1746459030473,0.01985726,94113.0,94112.0,0.68920704]
[1746459030684,0.23236775,94113.0,94112.0,0.68920704]
[1746459030893,0.23236775,94113.0,94112.0,0.69220704]
[1746459031097,0.24903089,94113.0,94112.0,0.69220704]
[1746459031543,0.24903089,94113.0,94112.0,0.69420704]
[1746459031769,0.24903089,94113.0,94112.0,0.69120704]
[1746459032346,0.24903089,94113.0,94112.0,0.69220704]
[1746459033427,0.0365204,94113.0,94112.0,0.69220704]
[1746459033878,0.0365204,94113.0,94112.0,0.69520704]
[1746459035764,0.0365204,94113.0,94112.0,0.81134564]
[1746459035980,0.0365204,94113.0,94112.0,0.74074789]
[1746459036235,4.558e-05,94115.0,94114.0,0.78048359]
[1746459036503,0.002,94149.0,94115.0,0.35454085]
[1746459036724,0.002,94149.0,94140.0,0.01454085]
[1746459036927,0.00045677,94146.0,94142.0,0.01454085]
[1746459037148,0.00045677,94146.0,94144.0,0.00754085]
[1746459037367,0.00045677,94146.0,94145.0,0.0315]
[1746459038855,0.00045677,94146.0,94145.0,0.0345]
[1746459039076,0.00045677,94146.0,94145.0,0.04904085]
[1746459039272,0.00045677,94146.0,94145.0,0.1130964]
[1746459039502,0.01711197,94146.0,94145.0,0.1130964]
[1746459039915,0.01711197,94146.0,94145.0,0.1150964]
[1746459040339,0.01711197,94146.0,94145.0,0.8032964]
[1746459041531,0.01711197,94146.0,94145.0,0.85136615]
[1746459041967,0.01711197,94146.0,94145.0,0.86200952]
[1746459042344,0.01643542,94146.0,94145.0,0.86200952]
[1746459043551,0.01643542,94146.0,94145.0,0.81393977]
[1746459044009,0.01643542,94146.0,94145.0,0.80693977]
[1746459044216,0.002,94149.0,94145.0,1.14693977]
[1746459044425,0.002,94169.0,94160.0,0.01454085]
[1746459044661,0.01665431,94163.0,94162.0,0.02994085]
[1746459045168,0.002137,94169.0,94162.0,0.02994085]
[1746459046138,0.002137,94169.0,94162.0,0.03594085]
[1746459046312,0.002137,94169.0,94164.0,0.01454085]
[1746459046519,0.002137,94169.0,94166.0,0.03014085]
[1746459047561,0.01878883,94169.0,94168.0,0.04704085]
[1746459047973,0.01878883,94169.0,94168.0,0.42354817]
[1746459048175,0.002137,94169.0,94168.0,0.42354817]
[1746459048380,0.002137,94169.0,94168.0,0.52906846]
[1746459048978,0.002137,94169.0,94168.0,0.86906846]
[1746459050095,0.002137,94169.0,94168.0,0.87206846]
[1746459050295,0.002137,94169.0,94168.0,0.75014817]
[1746459050535,0.002137,94169.0,94168.0,0.76624817]
[1746459050930,0.002137,94169.0,94168.0,0.76924817]
[1746459051140,0.01878764,94169.0,94168.0,0.76524817]
[1746459051353,0.01878764,94169.0,94168.0,0.87476846]
[1746459052083,0.01678764,94169.0,94168.0,0.87476846]
[1746459052296,0.002,94189.0,94179.0,0.01454085]
[1746459052509,0.01665093,94185.0,94181.0,0.01454085]
[1746459052705,0.01665093,94185.0,94183.0,0.01454085]
[1746459054141,0.01665093,94185.0,94184.0,0.04654085]
[1746459054559,0.01665093,94185.0,94184.0,0.03074085]
[1746459055520,0.01665093,94185.0,94184.0,0.04664085]
[1746459056192,0.01665093,94185.0,94184.0,0.03964085]
[1746459056421,0.01665093,94185.0,94184.0,0.14516114]
[1746459056669,0.002,94189.0,94184.0,0.14516114]
[1746459056670,0.002,94189.0,94185.0,0.01454085]
[1746459058250,0.002,94189.0,94187.0,0.01454085]
[1746459058982,0.002,94189.0,94188.0,0.36582085]
[1746459059618,0.01864893,94189.0,94188.0,0.36582085]
[1746459060265,0.01864893,94189.0,94188.0,0.4298764]
[1746459060681,0.01864893,94189.0,94188.0,0.4308764]
[1746459061315,0.01864893,94189.0,94188.0,0.36682085]
[1746459061509,0.26318795,94189.0,94188.0,0.35428]
[1746459062964,0.26318795,94189.0,94188.0,0.35328]
[1746459063172,0.26318795,94189.0,94188.0,0.35228]
[1746459063318,0.26318795,94189.0,94188.0,0.34528]
[1746459063746,0.26318795,94189.0,94188.0,0.34428]
[1746459064161,0.26518795,94189.0,94188.0,0.34428]
[1746459064325,0.35092209,94189.0,94188.0,0.34428]
[1746459064733,0.35092209,94189.0,94188.0,0.34628]
[1746459064928,0.34892209,94189.0,94188.0,0.34628]
[1746459065133,0.31564511,94189.0,94188.0,0.34428]
[1746459065401,0.33229623,94189.0,94188.0,0.34428]
[1746459065610,0.33329623,94189.0,94188.0,0.34428]
[1746459066207,0.33229623,94189.0,94188.0,0.34428]
[1746459066403,0.33329623,94189.0,94188.0,0.34428]
[1746459066607,0.31864511,94189.0,94188.0,0.34428]
[1746459067447,0.32064511,94189.0,94188.0,0.34428]
[1746459069594,0.33729647,94189.0,94188.0,0.34428]
[1746459070196,0.33729647,94189.0,94188.0,0.33728]
[1746459075970,0.33829647,94189.0,94188.0,0.33728]
[1746459077366,0.33829647,94189.0,94188.0,0.33028]
[1746459078212,0.33729647,94189.0,94188.0,0.33028]
[1746459082942,0.27129647,94189.0,94188.0,0.33028]
[1746459083196,0.1073855,94189.0,94188.0,0.33028]
[1746459083416,0.31972452,94189.0,94188.0,0.33028]
[1746459083638,0.35082452,94189.0,94188.0,0.33028]
[1746459084283,0.31972452,94189.0,94188.0,0.33028]
[1746459084536,0.31972452,94189.0,94188.0,0.32328]
[1746459086316,0.31872452,94189.0,94188.0,0.32328]
[1746459086750,0.30207316,94189.0,94188.0,0.32328]
[1746459087103,0.29807316,94189.0,94188.0,0.32328]
[1746459087287,0.29907316,94189.0,94188.0,0.32328]
[1746459087522,0.30107316,94189.0,94188.0,0.32328]
[1746459088446,0.30107316,94189.0,94188.0,0.68099968]
[1746459088909,0.33297316,94189.0,94188.0,0.68099968]
[1746459089345,0.30107316,94189.0,94188.0,0.68099968]
[1746459090451,0.33297316,94189.0,94188.0,0.68099968]
[1746459090791,0.34962465,94189.0,94188.0,0.68099968]
[1746459091011,0.31772465,94189.0,94188.0,0.68099968]
[1746459092645,0.31772465,94189.0,94188.0,0.75744516]
[1746459092646,0.10538563,94189.0,94188.0,0.75744516]
[1746459093083,0.03938563,94189.0,94188.0,0.75744516]
[1746459093301,0.03938563,94189.0,94188.0,0.78844516]
[1746459094192,0.01965149,94189.0,94188.0,0.78844516]
[1746459094856,0.01765149,94189.0,94188.0,0.78844516]
[1746459095070,0.01765149,94189.0,94188.0,0.79044516]
[1746459095284,0.01665149,94189.0,94188.0,0.79044516]
[1746459095504,0.01665149,94189.0,94188.0,0.78844516]
[1746459095707,0.01665149,94189.0,94188.0,0.79044516]
[1746459096566,0.01983549,94197.0,94189.0,0.01454085]
[1746459096777,0.01983549,94197.0,94190.0,0.08040485]
[1746459096990,0.00013693,94198.0,94190.0,0.08040485]
[1746459097290,0.00013693,94198.0,94192.0,0.01454085]
[1746459097926,0.01982271,94197.0,94192.0,0.01454085]
[1746459098162,0.01982271,94197.0,94194.0,0.01454085]
[1746459098275,0.00013693,94198.0,94194.0,0.03044085]
[1746459098948,0.00013693,94198.0,94194.0,0.11961184]
[1746459099769,0.01678519,94198.0,94194.0,0.11361184]
[1746459099891,0.03660472,94198.0,94194.0,0.11361184]